bitfinex-derivatives/quotes_BTCF0:USTF0_20251209
["timestamp","ask_amount","ask_price","bid_price","bid_amount"]
[1765238904179,0.02704,90765.0,90764.0,0.07005]
[1765238904377,0.0380562,90768.0,90767.0,0.05845]
[1765238905278,0.02704,90768.0,90767.0,0.05845]
[1765238905477,0.0110158,90771.0,90770.0,0.07563]
[1765238905680,0.0110158,90771.0,90770.0,0.42563]
[1765238905982,0.0110158,90771.0,90770.0,0.18563]
[1765238906378,0.0380558,90771.0,90770.0,0.18563]
[1765238906970,0.0650558,90771.0,90770.0,0.07563]
[1765238907170,0.0670558,90771.0,90770.0,0.07563]
[1765238908775,0.0740558,90771.0,90770.0,0.07663]
[1765238909777,0.03604,90771.0,90770.0,0.0876459]
[1765238909984,0.009,90771.0,90770.0,0.4676459]
[1765238910581,0.009,90771.0,90770.0,0.45663]
[1765238910974,0.009,90771.0,90770.0,0.4676459]
[1765238911774,0.009,90771.0,90770.0,0.45663]
[1765238912790,0.008,90771.0,90770.0,0.45663]
[1765238913193,0.0110156,90773.0,90772.0,0.05845]
[1765238913392,0.05514145,90790.0,90789.0,0.05845]
[1765238913592,0.10615495,90790.0,90789.0,0.05845]
[1765238914096,0.0650546,90781.0,90780.0,0.16017115]
[1765238914390,0.0650546,90781.0,90780.0,0.07471529]
[1765238915583,0.0680546,90781.0,90780.0,0.07471529]
[1765238915787,0.011,90781.0,90780.0,0.48571529]
[1765238915984,0.06504,90781.0,90780.0,0.48571529]
[1765238916600,0.06504,90781.0,90780.0,0.07571529]
[1765238918793,0.03804,90781.0,90780.0,0.07571529]
[1765238920587,0.06504,90781.0,90780.0,0.07571529]
[1765238921599,0.011,90781.0,90780.0,0.43571529]
[1765238922694,0.003,90781.0,90780.0,0.43471529]
[1765238922999,0.006,90781.0,90780.0,0.07471529]
[1765238923298,0.006,90781.0,90780.0,0.19471529]
[1765238923497,0.003,90781.0,90780.0,0.19471529]
[1765238923697,0.004,90781.0,90780.0,0.19471529]
[1765238924196,0.05983,90781.0,90780.0,0.05861529]
[1765238924597,0.41983,90781.0,90780.0,0.00016529]
[1765238925098,0.41983,90781.0,90780.0,0.02735529]
[1765238925902,0.20983,90781.0,90780.0,0.05480529]
[1765238929496,0.05983,90781.0,90780.0,0.05480529]
[1765238931100,0.41983,90781.0,90780.0,0.05480529]
[1765238931616,0.05983,90781.0,90780.0,0.07239529]
[1765238931813,0.46983,90781.0,90780.0,0.00016529]
[1765238932197,0.46983,90781.0,90780.0,0.02735529]
[1765238933408,0.2445382,90781.0,90780.0,0.05480529]
[1765238934198,0.4445382,90781.0,90780.0,0.05480529]
[1765238936495,0.2045382,90781.0,90780.0,0.05480529]
[1765238937309,0.0845382,90781.0,90780.0,0.05480529]
[1765238937608,0.0845382,90781.0,90780.0,0.06978529]
[1765238938007,0.0317,90781.0,90780.0,0.45978529]
[1765238938407,0.05983,90781.0,90780.0,0.45978529]
[1765238939411,0.05983,90781.0,90780.0,0.20978529]
[1765238942010,0.05983,90781.0,90780.0,0.44978529]
[1765238942307,0.05983,90781.0,90780.0,0.14978529]
[1765238944013,0.08454818,90781.0,90780.0,0.00016529]
[1765238944213,0.49454818,90781.0,90780.0,0.00016529]
[1765238944415,0.05583,90761.0,90760.0,0.1401214]
[1765238944714,0.066848,90753.0,90752.0,0.05464]
[1765238945212,0.0668488,90746.0,90745.0,0.07791]
[1765238945517,0.4368488,90746.0,90745.0,0.02327]
[1765238946814,0.4368488,90746.0,90745.0,0.05099]
[1765238947015,0.4378488,90746.0,90745.0,0.05099]
[1765238947510,0.4368488,90746.0,90745.0,0.05399]
[1765238947816,0.4368488,90746.0,90745.0,0.05599]
[1765238949507,0.1768488,90746.0,90745.0,0.05599]
[1765238949713,0.1768488,90746.0,90745.0,0.08367]
[1765238950608,0.0668488,90746.0,90745.0,0.08367]
[1765238951614,0.4368488,90746.0,90745.0,0.08367]
[1765238952624,0.0668488,90746.0,90745.0,0.08367]
[1765238952818,0.1868488,90746.0,90745.0,0.08367]
[1765238954621,0.1868488,90746.0,90745.0,0.18367]
[1765238955318,0.1868488,90746.0,90745.0,0.1604]
[1765238957820,0.4368488,90746.0,90745.0,0.13272]
[1765238958421,0.4368488,90746.0,90745.0,0.16261]
[1765238958924,0.4368488,90746.0,90745.0,0.16161]
[1765238959319,0.4368488,90746.0,90745.0,0.15861]
[1765238959519,0.4368488,90746.0,90745.0,0.15961]
[1765238959919,0.4368488,90746.0,90745.0,0.16061]
[1765238960922,0.4368488,90746.0,90745.0,0.13072]
[1765238961722,0.4368488,90746.0,90745.0,0.16061]
[1765238962129,0.4368488,90746.0,90745.0,0.15961]
[1765238962426,0.4368488,90746.0,90745.0,0.12972]
[1765238963129,0.4368488,90746.0,90745.0,0.15961]
[1765238966327,0.0687394,90741.0,90740.0,0.00110206]
[1765238966628,0.0687394,90741.0,90736.0,0.00016529]
[1765238966629,0.0687399,90737.0,90736.0,0.00016529]
[1765238966817,0.4387399,90737.0,90736.0,0.00016529]
[1765238967026,0.2087399,90737.0,90736.0,0.00016529]
[1765238967219,0.2087399,90737.0,90736.0,0.02994529]
[1765238967829,0.2087399,90737.0,90736.0,0.03094529]
[1765238968028,0.2087399,90737.0,90736.0,0.00116529]
[1765238968233,0.0687405,90732.0,90720.0,0.0854814]
[1765238968423,0.4187405,90732.0,90720.0,0.0854814]
[1765238969230,0.4187405,90732.0,90723.0,0.03063]
[1765238969428,0.4187405,90732.0,90731.0,0.00210284]
[1765238969828,0.4187405,90732.0,90731.0,0.00010284]
[1765238970031,0.4187405,90732.0,90731.0,0.00210284]
[1765238970832,0.1987405,90732.0,90731.0,0.03188284]
[1765238971130,0.1987405,90732.0,90731.0,0.06277284]
[1765238972121,0.0687405,90732.0,90731.0,0.06277284]
[1765238977533,0.4887405,90732.0,90731.0,0.00310284]
[1765238978232,0.0687415,90724.0,90723.0,0.03063]
[1765238978431,0.4987415,90724.0,90723.0,0.03063]
[1765238978624,0.05772,90723.0,90722.0,0.00016529]
[1765238978820,0.49244848,90723.0,90722.0,0.00016529]
[1765238979024,0.46772,90723.0,90722.0,0.00016529]
[1765238979225,0.46782284,90723.0,90722.0,0.02994529]
[1765238980328,0.46782284,90723.0,90715.0,0.03088236]
[1765238980329,0.0687425,90716.0,90715.0,0.03088236]
[1765238980528,0.4487425,90716.0,90715.0,0.03088236]
[1765238980729,0.47346588,90716.0,90715.0,0.03088236]
[1765238981631,0.47546588,90716.0,90715.0,0.00110236]
[1765238981935,0.4517425,90716.0,90715.0,0.00110236]
[1765238983128,0.4517425,90716.0,90715.0,0.05832236]
[1765238983330,0.1117425,90716.0,90715.0,0.05832236]
[1765238985030,0.0717425,90716.0,90715.0,0.05832236]
[1765238985330,0.4517425,90716.0,90715.0,0.05832236]
[1765238987835,0.1117425,90716.0,90715.0,0.05832236]
[1765238989647,0.4683225,90716.0,90715.0,0.05832236]
[1765238990428,0.4683225,90716.0,90715.0,0.00110236]
[1765238990637,0.49317946,90716.0,90715.0,0.00110236]
[1765238992944,0.0686133,90709.0,90708.0,0.05903]
[1765238993147,0.4786133,90709.0,90708.0,0.08664]
[1765238993337,0.2286133,90709.0,90708.0,0.05722]
[1765238994937,0.05759,90709.0,90708.0,0.05722]
[1765238995535,0.0686127,90715.0,90714.0,0.05722]
[1765238996733,0.0706127,90715.0,90714.0,0.05722]
[1765238999534,0.07706,90715.0,90714.0,0.05722]
[1765238999740,0.05959,90715.0,90714.0,0.05722]
[1765239001944,0.00010284,90723.0,90722.0,0.0568]
[1765239002655,0.00010284,90723.0,90722.0,0.4768]
[1765239003352,0.00010284,90723.0,90722.0,0.4778]
[1765239004045,0.00310284,90723.0,90722.0,0.4768]
[1765239005148,0.00410284,90723.0,90722.0,0.4768]
[1765239006954,0.03918579,90733.0,90732.0,0.0568]
[1765239007142,0.06837579,90733.0,90732.0,0.0568]
[1765239007945,0.06837579,90733.0,90732.0,0.0678205]
[1765239008150,0.03918579,90733.0,90732.0,0.0678205]
[1765239008546,0.00016529,90733.0,90732.0,0.0678205]
[1765239009250,0.00016529,90733.0,90732.0,0.0698205]
[1765239009752,0.00016529,90733.0,90732.0,0.0678205]
[1765239009952,0.00116529,90733.0,90732.0,0.0678205]
[1765239010350,0.00216529,90733.0,90732.0,0.0678205]
[1765239011945,0.00216529,90733.0,90732.0,0.4878205]
[1765239012845,0.00016529,90733.0,90732.0,0.4878205]
[1765239013040,0.00116529,90733.0,90732.0,0.4878205]
[1765239014748,0.00016529,90733.0,90732.0,0.4878205]
[1765239014950,0.00116529,90733.0,90732.0,0.4878205]
[1765239018554,0.00116529,90733.0,90732.0,0.5053605]
[1765239019053,0.04138176,90740.0,90739.0,0.0685997]
[1765239019740,0.03036206,90740.0,90739.0,0.0685997]
[1765239019944,0.00110206,90740.0,90739.0,0.0685997]
[1765239020155,0.00110206,90740.0,90739.0,0.0745997]
[1765239020752,0.00110206,90740.0,90739.0,0.4465997]
[1765239021051,0.00016529,90749.0,90748.0,0.0847386]
[1765239021248,0.00016529,90749.0,90748.0,0.4547386]
[1765239022453,0.00016529,90749.0,90748.0,0.4587386]
[1765239022660,0.03036175,90765.0,90764.0,0.05758]
[1765239023248,0.05796175,90765.0,90764.0,0.05758]
[1765239023958,0.03036175,90765.0,90764.0,0.05758]
[1765239024856,0.00110175,90765.0,90764.0,0.48758]
[1765239025160,0.00110175,90765.0,90764.0,0.48958]
[1765239026558,0.00110175,90765.0,90764.0,0.50089422]
[1765239029358,0.00110175,90765.0,90764.0,0.07089422]
[1765239029558,0.06897825,90765.0,90764.0,0.29089422]
[1765239029752,0.05796175,90765.0,90764.0,0.29089422]
[1765239032363,0.05796175,90765.0,90764.0,0.05958]
[1765239032558,0.05796175,90765.0,90764.0,0.07063983]
[1765239033369,0.03036175,90765.0,90764.0,0.50063983]
[1765239034361,0.05796175,90765.0,90764.0,0.50063983]
[1765239035155,0.03036175,90765.0,90764.0,0.50063983]
[1765239037063,0.00110175,90765.0,90764.0,0.50063983]
[1765239042766,0.00016529,90774.0,90773.0,0.0688456]
[1765239042960,0.0110144,90783.0,90782.0,0.0704444]
[1765239043266,0.0838617,90805.0,90804.0,0.05943]
[1765239043459,0.45856408,90805.0,90804.0,0.05943]
[1765239043771,0.16856408,90805.0,90804.0,0.05943]
[1765239044064,0.1272617,90805.0,90804.0,0.05943]
[1765239044264,0.0672613,90809.0,90808.0,0.05943]
[1765239045673,0.05925,90809.0,90808.0,0.05943]
[1765239045874,0.008,90809.0,90808.0,0.05943]
[1765239046070,0.06425,90809.0,90808.0,0.05943]
[1765239049971,0.0401223,90800.0,90799.0,0.11510698]
[1765239050265,0.02911,90796.0,90795.0,0.07158519]
[1765239050561,0.0110127,90797.0,90796.0,0.05943]
[1765239050762,0.0401222,90801.0,90800.0,0.05943]
[1765239051277,0.0672622,90801.0,90800.0,0.05943]
[1765239052177,0.0682622,90801.0,90800.0,0.05943]
[1765239053382,0.05725,90801.0,90800.0,0.05943]
[1765239053679,0.001,90801.0,90800.0,0.4271]
[1765239053979,0.001,90801.0,90800.0,0.1971]
[1765239053980,0.03011,90801.0,90800.0,0.1971]
[1765239054167,0.05725,90801.0,90800.0,0.1971]
[1765239056079,0.05725,90801.0,90800.0,0.4371]
[1765239057381,0.05725,90801.0,90800.0,0.18943]
[1765239058571,0.05725,90801.0,90800.0,0.05943]
[1765239059680,0.05725,90801.0,90800.0,0.0771]
[1765239059977,0.03011,90801.0,90800.0,0.0771]
[1765239060381,0.0682622,90801.0,90800.0,0.0771]
[1765239060975,0.0682622,90801.0,90800.0,0.05943]
[1765239061176,0.0689728,90796.0,90795.0,0.12532519]
[1765239061377,0.0689728,90796.0,90795.0,0.09608519]
[1765239061683,0.4489728,90796.0,90795.0,0.06824519]
[1765239061880,0.4489728,90796.0,90795.0,0.06808]
[1765239062078,0.0689746,90781.0,90780.0,0.08540698]
[1765239062280,0.0689757,90772.0,90771.0,0.14248698]
[1765239062487,0.0689757,90772.0,90771.0,0.05708]
[1765239065481,0.00016485,90781.0,90776.0,0.01663]
[1765239065690,0.00016485,90781.0,90780.0,0.05708]
[1765239065878,0.05812485,90781.0,90780.0,0.05708]
[1765239067583,0.00016485,90781.0,90780.0,0.0680947]
[1765239067777,0.00016485,90781.0,90780.0,0.4530947]
[1765239067978,0.00016485,90781.0,90780.0,0.5762947]
[1765239068883,0.0298,90792.0,90790.0,0.01663]
[1765239069089,0.0298,90792.0,90791.0,0.05708]
[1765239069484,0.0408132,90792.0,90791.0,0.05708]
[1765239069681,0.0689732,90792.0,90791.0,0.05708]
[1765239070892,0.0689732,90792.0,90791.0,0.06008]
[1765239071284,0.4289732,90792.0,90791.0,0.003]
[1765239071685,0.0779743,90783.0,90782.0,0.00016519]
[1765239071891,0.46211525,90783.0,90782.0,0.00016519]
[1765239072894,0.46211525,90783.0,90782.0,0.00216519]
[1765239073187,0.46211525,90783.0,90782.0,0.00516519]
[1765239073393,0.4379743,90783.0,90782.0,0.00516519]
[1765239074993,0.46210444,90783.0,90782.0,0.00516519]
[1765239075291,0.4379743,90783.0,90782.0,0.00516519]
[1765239086300,0.46230364,90783.0,90782.0,0.00516519]
[1765239092203,0.46230364,90783.0,90782.0,0.03394519]
[1765239093507,0.46230364,90783.0,90782.0,0.06391519]
[1765239094302,0.46230364,90783.0,90782.0,0.03394519]
[1765239096306,0.46230364,90783.0,90782.0,0.06391519]
[1765239097491,0.09988406,90815.0,90796.0,0.05875]
[1765239097492,0.03661,90797.0,90796.0,0.05875]
[1765239097800,0.46838659,90797.0,90796.0,0.05875]
[1765239098702,0.08068659,90797.0,90796.0,0.05875]
[1765239099003,0.08168659,90797.0,90796.0,0.05875]
[1765239099598,0.0673337,90788.0,90787.0,0.14422156]
[1765239099805,0.0673337,90788.0,90787.0,0.05875]
[1765239100707,0.0673337,90788.0,90787.0,0.05975]
[1765239101598,0.0673337,90788.0,90787.0,0.06175]
[1765239102499,0.05632,90788.0,90787.0,0.06175]
[1765239102910,0.05632,90788.0,90787.0,0.27175]
[1765239103204,0.05632,90788.0,90787.0,0.06175]
[1765239106412,0.0673337,90788.0,90787.0,0.06175]
[1765239108513,0.05632,90788.0,90787.0,0.06175]
[1765239113003,0.0110131,90794.0,90787.0,0.06175]
[1765239113317,0.0682231,90794.0,90793.0,0.05759]
[1765239114717,0.05721,90794.0,90793.0,0.05759]
[1765239115717,0.068223,90794.0,90793.0,0.05759]
[1765239115919,0.05721,90794.0,90793.0,0.05759]
[1765239119123,0.47721,90794.0,90793.0,0.02948]
[1765239119612,0.47721,90794.0,90793.0,0.05759]
[1765239122922,0.15721,90794.0,90793.0,0.05759]
[1765239123223,0.05721,90794.0,90793.0,0.05759]
[1765239125021,0.48721,90794.0,90793.0,0.05759]
[1765239125323,0.05721,90794.0,90793.0,0.05759]
[1765239125622,0.41721,90794.0,90793.0,0.05759]
[1765239125920,0.41721,90794.0,90786.0,0.09420147]
[1765239125921,0.05708,90802.0,90800.0,0.01757]
[1765239126121,0.05708,90809.0,90808.0,0.05886]
[1765239126312,0.08135229,90809.0,90808.0,0.05886]
[1765239126919,0.08135229,90809.0,90808.0,0.07003539]
[1765239127125,0.05708,90809.0,90808.0,0.07003539]
[1765239127427,0.0680918,90804.0,90803.0,0.02943]
[1765239127613,0.0680918,90804.0,90803.0,0.05886]
[1765239127819,0.05708,90802.0,90801.0,0.04026537]
[1765239128018,0.05708,90802.0,90801.0,0.06969537]
[1765239128618,0.05708,90802.0,90801.0,0.05886]
[1765239128821,0.05708,90802.0,90801.0,0.02943]
[1765239129020,0.08135858,90802.0,90801.0,0.02943]
[1765239129325,0.08335858,90802.0,90801.0,0.02943]
[1765239129823,0.08335858,90802.0,90801.0,0.05886]
[1765239130023,0.05908,90802.0,90801.0,0.05886]
[1765239130324,0.0308,90802.0,90801.0,0.0698722]
[1765239130522,0.003,90802.0,90801.0,0.12897924]
[1765239130719,0.0318,90802.0,90801.0,0.11796784]
[1765239130922,0.06008,90802.0,90801.0,0.11796784]
[1765239131129,0.06008,90802.0,90801.0,0.11795501]
[1765239131616,0.06008,90802.0,90801.0,0.05886]
[1765239131816,0.0318,90802.0,90801.0,0.42886]
[1765239132019,0.071092,90802.0,90801.0,0.42886]
[1765239132223,0.071092,90802.0,90801.0,0.16886]
[1765239132224,0.06008,90802.0,90801.0,0.16886]
[1765239134633,0.06008,90802.0,90801.0,0.05886]
[1765239134831,0.0318,90802.0,90801.0,0.48886]
[1765239135127,0.05923,90802.0,90801.0,0.48886]
[1765239135529,0.0318,90802.0,90801.0,0.48886]
[1765239136431,0.003,90802.0,90801.0,0.48886]
[1765239136620,0.003,90802.0,90801.0,0.54796996]
[1765239137231,0.03035,90802.0,90801.0,0.54796996]
[1765239137439,0.003,90802.0,90801.0,0.54796996]
[1765239138329,0.003,90802.0,90801.0,0.29796996]
[1765239138638,0.05778,90802.0,90801.0,0.11796996]
[1765239138843,0.05778,90802.0,90801.0,0.05886]
[1765239150334,0.05778,90802.0,90801.0,0.11796996]
[1765239151536,0.05778,90802.0,90801.0,0.05886]
[1765239152140,0.05778,90802.0,90799.0,0.00016519]
[1765239152141,0.07157,90800.0,90799.0,0.00016519]
[1765239152342,0.05478,90787.0,90784.0,0.07029384]
[1765239152542,0.4757939,90787.0,90785.0,0.05910996]
[1765239152945,0.49951233,90787.0,90778.0,0.01107681]
[1765239153333,0.4757939,90787.0,90778.0,0.01107681]
[1765239153848,0.4757939,90787.0,90786.0,0.03718]
[1765239154947,0.4757939,90787.0,90786.0,0.06686]
[1765239155348,0.4757939,90787.0,90786.0,0.03818]
[1765239156347,0.0957939,90787.0,90786.0,0.09435]
[1765239156543,0.0957939,90787.0,90786.0,0.06686]
[1765239157052,0.4657939,90787.0,90786.0,0.06686]
[1765239162845,0.4657939,90787.0,90786.0,0.03818]
[1765239165059,0.0657939,90787.0,90786.0,0.09568]
[1765239165551,0.0657939,90787.0,90786.0,0.06739]
[1765239165760,0.4557939,90787.0,90786.0,0.09568]
[1765239168654,0.05478,90787.0,90786.0,0.09568]
[1765239168953,0.00016519,90796.0,90795.0,0.07432]
[1765239171561,0.00116519,90796.0,90795.0,0.18432]
[1765239172261,0.03050519,90796.0,90795.0,0.18432]
[1765239172856,0.06050519,90796.0,90795.0,0.07432]
[1765239173558,0.06050519,90796.0,90795.0,0.0575]
[1765239174062,0.48050519,90796.0,90795.0,0.0575]
[1765239174466,0.0703537,90788.0,90787.0,0.17651]
[1765239174664,0.4203537,90788.0,90787.0,0.17651]
[1765239175257,0.4203537,90788.0,90787.0,0.05531]
[1765239175661,0.4203537,90788.0,90787.0,0.05731]
[1765239175862,0.4203537,90788.0,90787.0,0.05831]
[1765239177558,0.2003537,90788.0,90787.0,0.05831]
[1765239177765,0.0703529,90795.0,90794.0,0.05531]
[1765239178069,0.3203529,90795.0,90794.0,0.05531]
[1765239181173,0.05934,90795.0,90794.0,0.05531]
[1765239185676,0.4564,90795.0,90794.0,0.05531]
[1765239187080,0.4564,90795.0,90794.0,0.05784]
[1765239187282,0.1164,90795.0,90794.0,0.05784]
[1765239187581,0.09934,90795.0,90794.0,0.05784]
[1765239188585,0.05934,90795.0,90794.0,0.05784]
[1765239194594,0.22609,90795.0,90794.0,0.05784]
[1765239194799,0.20934,90795.0,90794.0,0.05784]
[1765239195094,0.05934,90795.0,90794.0,0.05784]
[1765239203197,0.05934,90795.0,90794.0,0.11694996]
[1765239205089,0.02934,90795.0,90794.0,0.11694996]
[1765239205489,0.0589,90795.0,90794.0,0.11694996]
[1765239205894,0.02934,90795.0,90794.0,0.11694996]
[1765239206103,0.0589,90795.0,90794.0,0.05784]
[1765239206302,0.00016519,90796.0,90795.0,0.0666529]
[1765239206804,0.0110116,90806.0,90792.0,0.0922]
[1765239206805,0.0700716,90806.0,90805.0,0.05564]
[1765239207099,0.10387844,90806.0,90805.0,0.05564]
[1765239208399,0.10687844,90806.0,90805.0,0.05564]
[1765239208589,0.50687844,90806.0,90805.0,0.05564]
[1765239208998,0.21787844,90806.0,90805.0,0.05564]
[1765239210596,0.45787844,90806.0,90805.0,0.05564]
[1765239211595,0.0700722,90801.0,90800.0,0.11499689]
[1765239211801,0.4800722,90801.0,90800.0,0.11499689]
[1765239212607,0.4800722,90801.0,90800.0,0.05564]
[1765239212906,0.4830722,90801.0,90800.0,0.05564]
[1765239216398,0.4830722,90801.0,90799.0,0.03009]
[1765239216598,0.4830722,90801.0,90800.0,0.02753]
[1765239216904,0.4830722,90801.0,90800.0,0.05564]
[1765239218010,0.4820722,90801.0,90800.0,0.05564]
[1765239218210,0.4830722,90801.0,90800.0,0.02753]
[1765239218610,0.4830722,90801.0,90800.0,0.05564]
[1765239218800,0.50586982,90801.0,90799.0,0.03009]
[1765239219001,0.07581,90800.0,90799.0,0.03009]
[1765239219208,0.44581,90800.0,90799.0,0.05762]
[1765239219509,0.44581,90800.0,90799.0,0.08573]
[1765239220301,0.12006,90800.0,90799.0,0.08573]
[1765239220508,0.12006,90800.0,90799.0,0.14508689]
[1765239222012,0.45006,90800.0,90799.0,0.14508689]
[1765239222212,0.45006,90800.0,90799.0,0.08573]
[1765239222711,0.18006,90800.0,90799.0,0.08573]
[1765239222913,0.18006,90800.0,90799.0,0.14508689]
[1765239225414,0.18006,90800.0,90799.0,0.08573]
[1765239225614,0.18006,90800.0,90799.0,0.14505658]
[1765239226210,0.18006,90800.0,90799.0,0.08573]
[1765239226416,0.1505,90800.0,90799.0,0.08573]
[1765239226911,0.17883,90800.0,90799.0,0.08573]
[1765239231611,0.42883,90800.0,90799.0,0.08573]
[1765239233320,0.26883,90800.0,90799.0,0.08573]
[1765239235420,0.0110094,90824.0,90799.0,0.08573]
[1765239235421,0.0680207,90814.0,90813.0,0.05752]
[1765239235608,0.08060301,90814.0,90813.0,0.05752]
[1765239235814,0.0110097,90822.0,90814.0,0.0685306]
[1765239236015,0.05701,90822.0,90820.0,0.01572]
[1765239236222,0.15868,90822.0,90821.0,0.05752]
[1765239236422,0.18701,90822.0,90821.0,0.05752]
[1765239236819,0.07327,90820.0,90819.0,0.05934541]
[1765239237020,0.06802,90819.0,90818.0,0.05934541]
[1765239237217,0.06802,90819.0,90818.0,0.05752]
[1765239237412,0.36802,90819.0,90818.0,0.05752]
[1765239237615,0.36802,90819.0,90817.0,0.05934541]
[1765239237923,0.36802,90819.0,90813.0,0.11686541]
[1765239237924,0.0680206,90814.0,90813.0,0.11686541]
[1765239238114,0.0680206,90814.0,90813.0,0.05752]
[1765239239018,0.4380206,90814.0,90813.0,0.05752]
[1765239239226,0.4400206,90814.0,90813.0,0.05752]
[1765239240328,0.4410206,90814.0,90813.0,0.05752]
[1765239241023,0.4410206,90814.0,90813.0,0.02939]
[1765239241210,0.0680209,90811.0,90810.0,0.05752]
[1765239242321,0.05701,90809.0,90808.0,0.05934541]
[1765239242511,0.05701,90807.0,90806.0,0.05752]
[1765239249418,0.02868,90807.0,90806.0,0.05752]
[1765239249623,0.0660208,90812.0,90811.0,0.0562]
[1765239250221,0.05501,90812.0,90811.0,0.0562]
[1765239250938,0.05701,90812.0,90811.0,0.0562]
[1765239251520,0.002,90812.0,90811.0,0.4362]
[1765239251817,0.0745408,90812.0,90811.0,0.23666142]
[1765239252019,0.0660212,90809.0,90807.0,0.05926142]
[1765239252218,0.066022,90802.0,90801.0,0.0562]
[1765239252724,0.07406,90800.0,90799.0,0.0597]
[1765239252919,0.45406,90800.0,90799.0,0.0597]
[1765239253136,0.45406,90800.0,90799.0,0.08673]
[1765239253840,0.45406,90800.0,90799.0,0.08773]
[1765239254019,0.45406,90800.0,90799.0,0.08973]
[1765239254827,0.011012,90802.0,90801.0,0.05664]
[1765239254828,0.067762,90802.0,90801.0,0.05664]
[1765239255026,0.05675,90802.0,90801.0,0.05664]
[1765239255930,0.05675,90802.0,90801.0,0.05764]
[1765239256423,0.05675,90802.0,90801.0,0.05964]
[1765239265033,0.48675,90802.0,90801.0,0.003]
[1765239265440,0.48675,90802.0,90801.0,0.03261]
[1765239265743,0.48675,90802.0,90801.0,0.05964]
[1765239267640,0.48675,90802.0,90801.0,0.03261]
[1765239268242,0.48675,90802.0,90801.0,0.05964]
[1765239269836,0.48675,90802.0,90801.0,0.03261]
[1765239270041,0.48675,90802.0,90801.0,0.003]
[1765239270732,0.0677622,90801.0,90800.0,0.07372]
[1765239270936,0.51129761,90801.0,90800.0,0.07372]
[1765239271745,0.51129761,90801.0,90800.0,0.10333]
[1765239272744,0.51129761,90801.0,90800.0,0.10433]
[1765239272944,0.51129761,90801.0,90800.0,0.13136]
[1765239273252,0.17675,90801.0,90800.0,0.13236]
[1765239274147,0.05675,90801.0,90800.0,0.13236]
[1765239274544,0.05675,90801.0,90800.0,0.14872]
[1765239275452,0.05675,90801.0,90800.0,0.14672]
[1765239275740,0.05675,90801.0,90800.0,0.14772]
[1765239275938,0.05675,90801.0,90800.0,0.13136]
[1765239276345,0.05675,90801.0,90800.0,0.14772]
[1765239276545,0.05675,90801.0,90800.0,0.14672]
[1765239276737,0.05675,90801.0,90800.0,0.14872]
[1765239281645,0.039572,90803.0,90802.0,0.05664]
[1765239281837,0.039572,90803.0,90802.0,0.11601265]
[1765239282152,0.067762,90803.0,90802.0,0.11601265]
[1765239284742,0.067762,90803.0,90802.0,0.05664]
[1765239286140,0.066942,90803.0,90802.0,0.05664]
[1765239292652,0.066942,90803.0,90802.0,0.11603334]
[1765239292852,0.066942,90803.0,90802.0,0.05664]
[1765239294650,0.066942,90803.0,90802.0,0.1160406]
[1765239295852,0.039572,90803.0,90802.0,0.05664]
[1765239296151,0.066942,90803.0,90802.0,0.05664]
[1765239297050,0.066942,90803.0,90802.0,0.11604543]
[1765239298455,0.066942,90803.0,90802.0,0.05664]
[1765239300241,0.05705,90802.0,90801.0,0.03714]
[1765239300442,0.47056202,90802.0,90801.0,0.03714]
[1765239300954,0.47056202,90802.0,90801.0,0.09409]
[1765239301155,0.08056202,90802.0,90801.0,0.09409]
[1765239301656,0.05705,90802.0,90801.0,0.15549737]
[1765239302152,0.05705,90802.0,90801.0,0.15449737]
[1765239302357,0.05705,90802.0,90801.0,0.15349737]
[1765239303455,0.500567,90802.0,90801.0,0.03714]
[1765239308664,0.080567,90802.0,90801.0,0.09331]
[1765239308867,0.440567,90802.0,90801.0,0.09331]
[1765239309268,0.080567,90802.0,90801.0,0.09331]
[1765239309566,0.0690115,90807.0,90806.0,0.05617]
[1765239309862,0.42149658,90807.0,90806.0,0.05617]
[1765239310059,0.43250798,90807.0,90806.0,0.05617]
[1765239311160,0.43350798,90807.0,90806.0,0.05617]
[1765239311463,0.43350764,90807.0,90806.0,0.05617]
[1765239312065,0.4100114,90807.0,90806.0,0.05617]
[1765239312260,0.399,90807.0,90806.0,0.05617]
[1765239315168,0.1307,90807.0,90806.0,0.05617]
[1765239315355,0.0307,90807.0,90806.0,0.43617]
[1765239315561,0.0307,90807.0,90806.0,0.30617]
[1765239315759,0.0399156,90807.0,90806.0,0.30617]
[1765239315961,0.0399156,90807.0,90806.0,0.36557737]
[1765239316959,0.0399156,90807.0,90806.0,0.12557737]
[1765239317573,0.001,90807.0,90806.0,0.47557737]
[1765239318474,0.02825,90807.0,90806.0,0.26557737]
[1765239318673,0.0664714,90807.0,90806.0,0.20617]
[1765239319278,0.05546,90807.0,90806.0,0.20617]
[1765239321169,0.05546,90807.0,90806.0,0.26550635]
[1765239321370,0.02825,90807.0,90806.0,0.11550635]
[1765239321577,0.0110097,90822.0,90816.0,0.0701003]
[1765239321874,0.0382597,90822.0,90821.0,0.05909]
[1765239322076,0.0654697,90822.0,90821.0,0.05909]
[1765239322777,0.0674697,90822.0,90821.0,0.05909]
[1765239323485,0.0654697,90822.0,90821.0,0.05909]
[1765239323681,0.0674697,90822.0,90821.0,0.05909]
[1765239324074,0.05446,90816.0,90815.0,0.05909]
[1765239324476,0.05446,90814.0,90813.0,0.04415]
[1765239324680,0.41446,90814.0,90813.0,0.04415]
[1765239324980,0.41446,90814.0,90813.0,0.07369]
[1765239325377,0.41446,90814.0,90813.0,0.10324]
[1765239326381,0.41546,90814.0,90813.0,0.05909]
[1765239326976,0.41746,90814.0,90813.0,0.05909]
[1765239329686,0.05446,90811.0,90810.0,0.00016519]
[1765239329892,0.05446,90811.0,90810.0,0.05925519]
[1765239330784,0.05446,90811.0,90810.0,0.07699519]
[1765239330976,0.05646,90811.0,90810.0,0.07699519]
[1765239331589,0.05746,90811.0,90810.0,0.07699519]
[1765239331981,0.003,90811.0,90810.0,0.07699519]
[1765239332182,0.003,90811.0,90810.0,0.45699519]
[1765239332692,0.0654693,90825.0,90824.0,0.05909]
[1765239334088,0.0704693,90825.0,90824.0,0.05909]
[1765239334392,0.0724693,90825.0,90824.0,0.05909]